[Event "VIII Open Semana Santa-B 2024"]
[Site "San Vicente del Raspeig"]
[Date "2024.03.29"]
[Round "4.1"]
[White "Amoros Moran, Jose Joaquin"]
[Black "Perea Sardon, Francisco Javier"]
[Result "*"]
[ECO "B12"]
[WhiteElo "1883"]
[BlackElo "1749"]
[Annotator "NA RC"]
[PlyCount "30"]
[EventDate "2024.03.27"]
[EventType "swiss"]
[EventCountry "ESP"]
[SourceTitle "playchess.com"]
[Source "ChessBase"]
[SourceQuality "1"]
[TimeControl "5400+30"]

1. e4 {[%emt 0:05:07]} c6 {[%emt 0:03:46]} 2. d4 {[%emt 0:00:30]} d5 {[%emt 0:00:30]} 3. e5 {[%emt 0:00:30]} Bf5 {[%emt 0:00:30]} 4. c4 {[%emt 0:00:30]} e6 {[%emt 0:00:30]} 5. Nc3 {[%emt 0:00:30]} Ne7 {[%emt 0:00:30]} 6. a3 {[%emt 0:00:30]} dxc4 {[%emt 0:00:30]} 7. Bxc4 {[%emt 0:00:30]} Nd7 {[%emt 0:00:30]} 8. Nge2 {[%emt 0:00:30]} Nb6 {[%emt 0:00:30]} 9. Bb3 {[%emt 0:00:30]} Qd7 {[%emt 0:00:30]} 10. O-O {[%emt 0:00:30]} O-O-O {[%emt 0:00:30]} 11. Be3 {[%emt 0:00:30]} Nbd5 {[%emt 0:00:30]} 12. Re1 {[%emt 0:00:30]} Nxc3 {[%emt 0:00:30]} 13. Nxc3 {[%emt 0:00:30]} Nd5 {[%emt 0:00:30]} 14. Bxd5 {[%emt 0:00:30]} exd5 {[%emt 0:00:30]} 15. b4 {[%emt 0:00:30]} Kb8 {[%emt 0:00:30]} *

[Event "VIII Open Semana Santa-B 2024"]
[Site "San Vicente del Raspeig"]
[Date "2024.03.29"]
[Round "4.2"]
[White "Elizondo Marquet, Juan Marcos"]
[Black "Torralba Brosa, Marc"]
[Result "1/2-1/2"]
[ECO "A37"]
[WhiteElo "1813"]
[BlackElo "1869"]
[Annotator "NA RC"]
[PlyCount "58"]
[EventDate "2024.03.27"]
[EventType "swiss"]
[EventCountry "ESP"]
[SourceTitle "playchess.com"]
[Source "ChessBase"]
[SourceQuality "1"]
[TimeControl "5400+30"]

1. c4 {[%emt 0:05:50]} c5 {[%emt 0:00:00]} 2. g3 {[%emt 0:00:30]} Nc6 {[%emt 0:00:00]} 3. Bg2 {[%emt 0:00:30]} g6 {[%emt 0:00:00]} 4. Nc3 {[%emt 0:00:30]} Bg7 {[%emt 0:00:00]} 5. Nf3 {[%emt 0:00:30]} e5 {[%emt 0:00:00]} 6. d3 {[%emt 0:00:30]} Nge7 {[%emt 0:00:00]} 7. O-O {[%emt 0:00:30]} O-O {[%emt 0:00:20]} 8. e4 {[%emt 0:00:30]} d6 {[%emt 0:00:30]} 9. Bg5 {[%emt 0:00:30]} f6 {[%emt 0:00:30]} 10. Be3 {[%emt 0:00:30]} f5 {[%emt 0:00:30]} 11. Bg5 {[%emt 0:00:30]} h6 {[%emt 0:00:30]} 12. Bxe7 {[%emt 0:00:30]} Nxe7 {[%emt 0:00:30]} 13. a3 {[%emt 0:00:30]} Nc6 {[%emt 0:00:30]} 14. Rb1 {[%emt 0:00:30]} a5 {[%emt 0:00:30]} 15. Nd5 {[%emt 0:00:30]} fxe4 {[%emt 0:00:30]} 16. dxe4 {[%emt 0:00:30]} Bg4 {[%emt 0:00:30]} 17. h3 {[%emt 0:00:30]} Bxf3 {[%emt 0:00:30]} 18. Bxf3 {[%emt 0:00:30]} Nd4 {[%emt 0:00:30]} 19. Bg2 {[%emt 0:00:30]} a4 {[%emt 0:00:30]} 20. h4 {[%emt 0:00:30]} Kh7 {[%emt 0:00:30]} 21. h5 {[%emt 0:00:30]} g5 {[%emt 0:00:30]} 22. Qg4 {[%emt 0:00:30]} Qc8 {[%emt 0:00:30]} 23. Qxc8 {[%emt 0:00:30]} Raxc8 {[%emt 0:00:30]} 24. Nb6 {[%emt 0:00:30]} Rc7 {[%emt 0:00:30]} 25. Nxa4 {[%emt 0:00:30]} Rcf7 {[%emt 0:00:30]} 26. Nc3 {[%emt 0:00:30]} g4 {[%emt 0:00:30]} 27. b4 {[%emt 0:00:30]} cxb4 {[%emt 0:00:30]} 28. Rxb4 {[%emt 0:00:30]} Nc2 {[%emt 0:00:30]} 29. Ra4 {[%emt 0:00:30]} Nd4 {[%emt 0:00:30]} 1/2-1/2

[Event "VIII Open Semana Santa-B 2024"]
[Site "San Vicente del Raspeig"]
[Date "2024.03.29"]
[Round "4.3"]
[White "Zhuravlev, Matvey R"]
[Black "Ashton, Alannah"]
[Result "1/2-1/2"]
[ECO "A49"]
[WhiteElo "1774"]
[BlackElo "1839"]
[Annotator "NA RC"]
[PlyCount "61"]
[EventDate "2024.03.27"]
[EventType "swiss"]
[EventCountry "ESP"]
[SourceTitle "playchess.com"]
[Source "ChessBase"]
[SourceQuality "1"]
[TimeControl "5400+30"]

1. d4 {[%emt 0:03:33]} Nf6 {[%emt 0:06:03]} 2. Nf3 {[%emt 0:00:30]} g6 {[%emt 0:00:30]} 3. g3 {[%emt 0:00:30]} c6 {[%emt 0:00:30]} 4. Bg2 {[%emt 0:00:30]} d5 {[%emt 0:00:30]} 5. c4 {[%emt 0:00:30]} dxc4 {[%emt 0:00:30]} 6. Ne5 {[%emt 0:00:30]} Be6 {[%emt 0:00:30]} 7. O-O {[%emt 0:00:30]} Bg7 {[%emt 0:00:30]} 8. Na3 {[%emt 0:00:30]} Bd5 {[%emt 0:00:30]} 9. Naxc4 {[%emt 0:00:30]} Bxg2 {[%emt 0:00:30]} 10. Kxg2 {[%emt 0:00:30]} O-O {[%emt 0:00:30]} 11. Qd3 {[%emt 0:00:30]} Nbd7 {[%emt 0:00:30]} 12. e4 {[%emt 0:00:30]} b5 {[%emt 0:00:30]} 13. Nxd7 {[%emt 0:00:30]} Nxd7 $17 {[%emt 0:00:30]} 14. Nd2 {[%emt 0:00:30]} Nc5 {[%emt 0:00:30]} 15. Qa3 {[%emt 0:00:30]} Qxd4 {[%emt 0:00:30]} 16. Nf3 {[%emt 0:00:30]} Qc4 {[%emt 0:00:30]} 17. Bg5 {[%emt 0:00:30]} Nxe4 {[%emt 0:00:30]} 18. Rac1 {[%emt 0:00:30]} Qd5 {[%emt 0:00:30]} 19. Rfd1 {[%emt 0:00:30]} Qf5 {[%emt 0:00:30]} 20. Bxe7 {[%emt 0:00:30]} Rfc8 {[%emt 0:00:30]} 21. Bb4 {[%emt 0:00:30]} c5 {[%emt 0:00:30]} 22. Be1 {[%emt 0:00:30]} Bh6 {[%emt 0:00:30]} 23. Rb1 {[%emt 0:00:30]} Bg7 {[%emt 0:00:30]} 24. Qa6 {[%emt 0:00:30]} c4 {[%emt 0:00:30]} 25. Nh4 {[%emt 0:00:30]} Qh5 {[%emt 0:00:30]} 26. Qb7 {[%emt 0:00:30]} Nf6 {[%emt 0:00:30]} 27. Bc3 {[%emt 0:00:30]} Qg4 {[%emt 0:00:30]} 28. Qxb5 {[%emt 0:00:30]} Qe4+ {[%emt 0:00:30]} 29. Kg1 {[%emt 0:00:30]} Ng4 {[%emt 0:00:30]} 30. Bxg7 {[%emt 0:00:30]} Kxg7 {[%emt 0:00:30]} 31. Qd5 {[%emt 0:00:30]} 1/2-1/2

[Event "VIII Open Semana Santa-B 2024"]
[Site "San Vicente del Raspeig"]
[Date "2024.03.29"]
[Round "4.4"]
[White "Almache Montoya, Jefferson"]
[Black "Herrera Pezo, Enoch"]
[Result "0-1"]
[ECO "B20"]
[WhiteElo "1697"]
[BlackElo "1831"]
[Annotator "NA RC"]
[PlyCount "68"]
[EventDate "2024.03.27"]
[EventType "swiss"]
[EventCountry "ESP"]
[SourceTitle "playchess.com"]
[Source "ChessBase"]
[SourceQuality "1"]
[TimeControl "5400+30"]

1. e4 {[%emt 0:01:26]} c5 {[%emt 0:05:49]} 2. a3 {[%emt 0:00:30]} Nc6 {[%emt 0:00:30]} 3. b4 {[%emt 0:00:30]} d6 {[%emt 0:00:30]} 4. b5 {[%emt 0:00:30]} Nb8 {[%emt 0:00:30]} 5. c4 {[%emt 0:00:30]} Nf6 {[%emt 0:00:30]} 6. d3 {[%emt 0:00:30]} g6 {[%emt 0:00:30]} 7. Bb2 {[%emt 0:00:30]} Nbd7 {[%emt 0:00:30]} 8. h3 {[%emt 0:00:30]} Bg7 {[%emt 0:00:30]} 9. g4 {[%emt 0:00:30]} O-O {[%emt 0:00:30]} 10. Bg2 {[%emt 0:00:30]} e6 {[%emt 0:00:30]} 11. Ne2 {[%emt 0:00:30]} d5 {[%emt 0:00:30]} 12. e5 {[%emt 0:00:30]} Ne8 {[%emt 0:00:30]} 13. f4 {[%emt 0:00:30]} Qh4+ {[%emt 0:00:30]} 14. Kf1 {[%emt 0:00:30]} f6 {[%emt 0:00:30]} 15. Nd2 {[%emt 0:00:30]} fxe5 {[%emt 0:00:30]} 16. Nf3 {[%emt 0:00:30]} Qe7 {[%emt 0:00:30]} 17. cxd5 {[%emt 0:00:30]} exd5 {[%emt 0:00:30]} 18. Kg1 {[%emt 0:00:30]} exf4 {[%emt 0:00:30]} 19. Bxg7 {[%emt 0:00:30]} Nxg7 {[%emt 0:00:30]} 20. Kh2 {[%emt 0:00:30]} Nf6 {[%emt 0:00:30]} 21. Re1 {[%emt 0:00:30]} Qd6 {[%emt 0:00:30]} 22. Rc1 {[%emt 0:00:30]} Bd7 {[%emt 0:00:30]} 23. Qb3 {[%emt 0:00:30]} Rae8 {[%emt 0:00:30]} 24. Kh1 {[%emt 0:00:30]} Re3 {[%emt 0:00:30]} 25. Nxf4 {[%emt 0:00:30]} Qxf4 {[%emt 0:00:30]} 26. Rxe3 {[%emt 0:00:30]} Qxe3 {[%emt 0:00:30]} 27. Re1 {[%emt 0:00:30]} c4 {[%emt 0:00:30]} 28. Qb4 {[%emt 0:00:30]} Qxd3 {[%emt 0:00:30]} 29. Ne5 {[%emt 0:00:30]} Qb3 {[%emt 0:00:30]} 30. Qd6 {[%emt 0:00:30]} Qxb5 {[%emt 0:00:30]} 31. Rf1 {[%emt 0:00:30]} Nge8 {[%emt 0:00:30]} 32. Qe7 {[%emt 0:00:30]} g5 {[%emt 0:00:30]} 33. h4 {[%emt 0:00:30]} h6 {[%emt 0:00:30]} 34. hxg5 {[%emt 0:00:30]} hxg5 {[%emt 0:00:30]} 0-1

[Event "VIII Open Semana Santa-B 2024"]
[Site "San Vicente del Raspeig"]
[Date "2024.03.29"]
[Round "4.5"]
[White "Garcia Ruano, Juan Carlos"]
[Black "Safir, Iaroslav"]
[Result "1/2-1/2"]
[ECO "B30"]
[WhiteElo "1885"]
[BlackElo "1705"]
[Annotator "NA RC"]
[PlyCount "35"]
[EventDate "2024.03.27"]
[EventType "swiss"]
[EventCountry "ESP"]
[SourceTitle "playchess.com"]
[Source "ChessBase"]
[SourceQuality "1"]
[TimeControl "5400+30"]

1. e4 c5 2. Nf3 Nc6 3. b3 b6 4. Bb2 Bb7 5. Bc4 e6 6. O-O d6 7. d4 cxd4 8. Nxd4 Nf6 9. Bb5 Qc7 10. f3 Be7 11. c4 O-O 12. Bxc6 Bxc6 13. Nxc6 Qxc6 14. Nc3 Qc5+ 15. Kh1 Rfd8 16. Qe2 Rac8 17. Rfd1 Nh5 {[%emt 0:19:21]} 18. Qd2 {[%emt 0:20:55]} 1/2-1/2

[Event "VIII Open Semana Santa-B 2024"]
[Site "San Vicente del Raspeig"]
[Date "2024.03.29"]
[Round "5.1"]
[White "Herrera Pezo, Enoch"]
[Black "Ruiz de Leon Merlo, Esther"]
[Result "1-0"]
[ECO "B40"]
[WhiteElo "1831"]
[BlackElo "1873"]
[Annotator "NA RC"]
[PlyCount "63"]
[EventDate "2024.03.27"]
[EventType "swiss"]
[EventCountry "ESP"]
[SourceTitle "playchess.com"]
[Source "ChessBase"]
[SourceQuality "1"]
[TimeControl "5400+30"]

1. e4 {[%emt 0:00:20]} c5 {[%emt 0:00:14]} 2. Nf3 {[%emt 0:00:10]} e6 {[%emt 0:00:21]} 3. d4 {[%emt 0:00:31]} cxd4 {[%emt 0:00:12]} 4. Nxd4 {[%emt 0:00:09]} Nf6 {[%emt 0:00:07]} 5. Bd3 {[%emt 0:00:27]} Nc6 {[%emt 0:00:16]} 6. Nf3 {[%emt 0:01:16]} d5 {[%emt 0:00:59]} 7. e5 {[%emt 0:00:33]} Nd7 {[%emt 0:03:28]} 8. Bf4 {[%emt 0:02:47]} Qc7 {[%emt 0:01:39]} 9. Qe2 {[%emt 0:00:59]} Nb4 {[%emt 0:04:52]} 10. O-O {[%emt 0:02:46]} Be7 {[%emt 0:02:32]} 11. Nc3 {[%emt 0:00:50]} a6 {[%emt 0:01:03]} 12. Bg3 {[%emt 0:01:47]} Nb6 {[%emt 0:03:18]} 13. Nd2 {[%emt 0:04:50]} Bd7 {[%emt 0:03:49]} 14. f4 {[%emt 0:01:09]} Na4 {[%emt 0:08:46]} 15. Nxa4 {[%emt 0:05:01]} Bxa4 {[%emt 0:00:27]} 16. b3 {[%emt 0:05:47]} Bd7 {[%emt 0:04:56]} 17. c4 {[%emt 0:00:35]} dxc4 {[%emt 0:03:11]} 18. Bxc4 {[%emt 0:00:44]} b5 {[%emt 0:02:25]} 19. Bd3 {[%emt 0:00:23]} Nxd3 {[%emt 0:01:28]} 20. Qxd3 {[%emt 0:00:08]} Rd8 {[%emt 0:03:04]} 21. Rac1 {[%emt 0:02:16]} Qa5 {[%emt 0:01:30]} 22. Ne4 {[%emt 0:00:36]} b4 {[%emt 0:04:45]} 23. Nd6+ {[%emt 0:02:17]} Bxd6 {[%emt 0:00:36]} 24. Qxd6 {[%emt 0:00:10]} Bb5 {[%emt 0:02:15]} 25. Qc5 {[%emt 0:00:12]} Qxa2 {[%emt 0:01:27]} 26. Bh4 {[%emt 0:00:29]} f6 {[%emt 0:05:54]} 27. exf6 {[%emt 0:00:09]} Rd7 {[%emt 0:02:31]} 28. Qc8+ {[%emt 0:05:19]} Kf7 {[%emt 0:00:16]} 29. Qxh8 {[%emt 0:00:09]} Kg6 {[%emt 0:00:38]} 30. Qe8+ {[%emt 0:01:08]} Rf7 {[%emt 0:01:13]} 31. Qxe6 {[%emt 0:00:17]} Bd7 {[%emt 0:03:48]} 32. f5+ {[%emt 0:01:04]} 1-0

[Event "VIII Open Semana Santa-B 2024"]
[Site "San Vicente del Raspeig"]
[Date "2024.03.29"]
[Round "5.2"]
[White "Torralba Brosa, Marc"]
[Black "Vila Castillo, Jaime"]
[Result "1-0"]
[ECO "B33"]
[WhiteElo "1869"]
[BlackElo "1812"]
[Annotator "NA RC"]
[PlyCount "141"]
[EventDate "2024.03.27"]
[EventType "swiss"]
[EventCountry "ESP"]
[SourceTitle "playchess.com"]
[Source "ChessBase"]
[SourceQuality "1"]
[TimeControl "5400+30"]

1. e4 {[%emt 0:00:02]} c5 {[%emt 0:00:22]} 2. Nf3 {[%emt 0:00:12]} Nc6 {[%emt 0:00:45]} 3. d4 {[%emt 0:00:04]} cxd4 {[%emt 0:00:19]} 4. Nxd4 {[%emt 0:00:02]} Nf6 {[%emt 0:00:18]} 5. Nc3 {[%emt 0:00:03]} e5 {[%emt 0:00:08]} 6. Ndb5 {[%emt 0:00:03]} d6 {[%emt 0:00:36]} 7. Bg5 {[%emt 0:00:16]} a6 {[%emt 0:00:08]} 8. Na3 {[%emt 0:00:05]} Be7 {[%emt 0:00:36]} 9. Bxf6 {[%emt 0:00:37]} Bxf6 {[%emt 0:00:02]} 10. Nd5 {[%emt 0:00:12]} O-O {[%emt 0:00:35]} 11. Bd3 {[%emt 0:01:01]} b5 {[%emt 0:00:37]} 12. c3 {[%emt 0:00:05]} Be6 {[%emt 0:01:31]} 13. Nc2 {[%emt 0:00:27]} Bxd5 {[%emt 0:00:32]} 14. exd5 {[%emt 0:00:12]} Ne7 {[%emt 0:00:21]} 15. Qh5 {[%emt 0:01:49]} g6 {[%emt 0:03:27]} 16. Qf3 {[%emt 0:00:05]} Bg7 {[%emt 0:00:14]} 17. g4 {[%emt 0:03:53]} f5 {[%emt 0:01:14]} 18. gxf5 {[%emt 0:00:09]} Nxf5 {[%emt 0:00:12]} 19. Qg4 {[%emt 0:02:16]} Qc8 {[%emt 0:05:16]} 20. Nb4 {[%emt 0:02:05]} Ne7 {[%emt 0:01:47]} 21. Qg2 {[%emt 0:02:49]} Qc5 {[%emt 0:07:19]} 22. Be2 {[%emt 0:08:06]} a5 {[%emt 0:04:23]} 23. Nc6 {[%emt 0:00:11]} Nxc6 {[%emt 0:00:20]} 24. dxc6 {[%emt 0:00:04]} d5 {[%emt 0:00:33]} 25. Rd1 {[%emt 0:00:34]} e4 {[%emt 0:00:31]} 26. O-O {[%emt 0:01:58]} Qxc6 {[%emt 0:01:17]} 27. Bg4 {[%emt 0:00:42]} Rad8 {[%emt 0:01:44]} 28. Qh3 {[%emt 0:00:30]} Rfe8 {[%emt 0:01:04]} 29. Rfe1 {[%emt 0:00:48]} h5 {[%emt 0:06:06]} 30. Be2 {[%emt 0:00:40]} Qc5 {[%emt 0:08:28]} 31. Qg2 {[%emt 0:02:54]} Qb6 {[%emt 0:01:43]} 32. Bf1 {[%emt 0:03:00]} Re5 {[%emt 0:04:54]} 33. Re3 {[%emt 0:00:54]} Bh6 {[%emt 0:07:04]} 34. Rg3 {[%emt 0:01:02]} Kh7 {[%emt 0:01:23]} 35. Qh3 {[%emt 0:04:39]} e3 {[%emt 0:02:24]} 36. fxe3 {[%emt 0:00:43]} Bxe3+ {[%emt 0:00:12]} 37. Kh1 {[%emt 0:00:26]} d4 {[%emt 0:09:40]} 38. Qg2 {[%emt 0:07:27]} Bf4 {[%emt 0:04:40]} 39. Rgd3 {[%emt 0:08:33]} Be3 {[%emt 0:01:54]} 40. Qf3 {[%emt 0:01:40]} Rf5 {[%emt 0:04:54]} 41. Qe4 {[%emt 0:00:26]} Rf4 {[%emt 0:00:24]} 42. Qe7+ {[%emt 0:01:24]} Kh6 {[%emt 0:00:53]} 43. Bg2 {[%emt 0:00:29]} Qd6 {[%emt 0:08:10]} 44. Rxe3 {[%emt 0:02:07]} Qxe7 {[%emt 0:07:26]} 45. Rxe7 {[%emt 0:00:06]} d3 {[%emt 0:02:48]} 46. Re3 {[%emt 0:03:08]} Rf2 {[%emt 0:00:22]} 47. Rexd3 {[%emt 0:00:30]} Rxd3 {[%emt 0:00:08]} 48. Rxd3 {[%emt 0:00:04]} Rxb2 {[%emt 0:00:10]} 49. Bd5 {[%emt 0:00:10]} Rc2 {[%emt 0:03:10]} 50. h4 {[%emt 0:00:26]} Kg7 {[%emt 0:01:00]} 51. Rf3 {[%emt 0:01:03]} Kh6 {[%emt 0:00:44]} 52. Rg3 {[%emt 0:00:43]} Rd2 {[%emt 0:00:30]} 53. Bf7 {[%emt 0:00:25]} Rd6 {[%emt 0:00:07]} 54. Kg2 {[%emt 0:00:40]} Kg7 {[%emt 0:00:07]} 55. Rf3 {[%emt 0:00:43]} Rd2+ {[%emt 0:00:39]} 56. Kg3 {[%emt 0:00:07]} Rd7 {[%emt 0:00:29]} 57. Be8 {[%emt 0:00:32]} Rb7 {[%emt 0:00:08]} 58. Rd3 {[%emt 0:01:36]} Rb6 {[%emt 0:01:39]} 59. Rd5 {[%emt 0:02:32]} b4 {[%emt 0:00:20]} 60. c4 {[%emt 0:02:36]} b3 {[%emt 0:00:26]} 61. axb3 {[%emt 0:00:21]} Rxb3+ {[%emt 0:00:05]} 62. Kf2 {[%emt 0:01:57]} Rb4 {[%emt 0:00:21]} 63. c5 {[%emt 0:01:33]} a4 {[%emt 0:00:33]} 64. c6 {[%emt 0:00:16]} a3 {[%emt 0:00:28]} 65. Ra5 {[%emt 0:00:24]} Rb2+ {[%emt 0:01:18]} 66. Ke3 {[%emt 0:00:27]} a2 {[%emt 0:00:48]} 67. Kd3 {[%emt 0:01:06]} Rb1 {[%emt 0:00:25]} 68. Rxa2 {[%emt 0:00:16]} Rc1 {[%emt 0:00:06]} 69. Rc2 {[%emt 0:00:21]} Rd1+ {[%emt 0:00:18]} 70. Ke2 {[%emt 0:00:16]} Rd8 {[%emt 0:00:05]} 71. Bd7 {[%emt 0:00:22]} 1-0

[Event "VIII Open Semana Santa-B 2024"]
[Site "San Vicente del Raspeig"]
[Date "2024.03.29"]
[Round "5.3"]
[White "Van Ree, Thailo"]
[Black "Zhuravlev, Matvey R"]
[Result "0-1"]
[ECO "D02"]
[WhiteElo "1841"]
[BlackElo "1774"]
[Annotator "NA RC"]
[PlyCount "60"]
[EventDate "2024.03.27"]
[EventType "swiss"]
[EventCountry "ESP"]
[SourceTitle "playchess.com"]
[Source "ChessBase"]
[SourceQuality "1"]
[TimeControl "5400+30"]

1. d4 {[%emt 1:31:00]} d5 {[%emt 0:02:56]} 2. Nf3 {[%emt 0:00:00]} Nf6 {[%emt 0:00:05]} 3. Bf4 {[%emt 0:00:00]} e6 {[%emt 0:00:26]} 4. e3 {[%emt 0:00:00]} c5 {[%emt 0:00:05]} 5. c3 {[%emt 0:00:00]} Nc6 {[%emt 0:01:12]} 6. Nbd2 {[%emt 0:00:00]} cxd4 {[%emt 0:00:20]} 7. exd4 {[%emt 0:00:00]} Nh5 {[%emt 0:00:06]} 8. Bg3 {[%emt 0:00:00]} Bd6 {[%emt 0:03:41]} 9. Bxd6 {[%emt 0:00:00]} Qxd6 {[%emt 0:00:09]} 10. Ne5 {[%emt 0:00:00]} g6 {[%emt 0:00:17]} 11. Ndf3 {[%emt 0:00:00]} O-O {[%emt 0:02:05]} 12. Qd2 {[%emt 0:00:00]} f6 {[%emt 0:02:05]} 13. Nxc6 {[%emt 0:00:00]} bxc6 {[%emt 0:01:00]} 14. Be2 {[%emt 0:00:00]} Nf4 {[%emt 0:03:47]} 15. O-O {[%emt 0:00:00]} e5 {[%emt 0:09:42]} 16. dxe5 {[%emt 0:00:00]} fxe5 {[%emt 0:00:05]} 17. h3 {[%emt 0:00:00]} e4 {[%emt 0:07:49]} 18. Nh2 {[%emt 0:00:00]} Qf6 {[%emt 0:08:12]} 19. Bg4 {[%emt 0:00:00]} Qg5 {[%emt 0:01:26]} 20. Qe3 {[%emt 0:00:00]} h5 {[%emt 0:09:04]} 21. g3 {[%emt 0:00:00]} hxg4 {[%emt 0:04:30]} 22. gxf4 {[%emt 0:00:00]} Rxf4 {[%emt 0:00:08]} 23. Kh1 {[%emt 0:00:00]} gxh3 {[%emt 0:02:38]} 24. Rg1 {[%emt 0:00:00]} Qf5 {[%emt 0:11:46]} 25. Rxg6+ {[%emt 0:00:00]} Qxg6 {[%emt 0:00:44]} 26. Rg1 {[%emt 0:00:00]} Rg4 {[%emt 0:00:11]} 27. Nxg4 {[%emt 0:00:00]} Bxg4 {[%emt 0:00:22]} 28. Rg3 {[%emt 0:00:00]} Kh7 {[%emt 0:01:04]} 29. Qf4 {[%emt 0:00:00]} Rg8 {[%emt 0:00:10]} 30. Kh2 {[%emt 0:00:00]} Rg7 {[%emt 0:00:54]} 0-1

[Event "VIII Open Semana Santa-B 2024"]
[Site "San Vicente del Raspeig"]
[Date "2024.03.29"]
[Round "5.4"]
[White "Ashton, Alannah"]
[Black "Elizondo Marquet, Juan Marcos"]
[Result "1-0"]
[ECO "B63"]
[WhiteElo "1839"]
[BlackElo "1813"]
[Annotator "NA RC"]
[PlyCount "117"]
[EventDate "2024.03.27"]
[EventType "swiss"]
[EventCountry "ESP"]
[SourceTitle "playchess.com"]
[Source "ChessBase"]
[SourceQuality "1"]
[TimeControl "5400+30"]

1. e4 {[%emt 0:00:00]} c5 {[%emt 0:00:00]} 2. Nf3 {[%emt 0:00:00]} d6 {[%emt 0:00:00]} 3. d4 {[%emt 0:00:00]} cxd4 {[%emt 1:32:00]} 4. Nxd4 {[%emt 1:32:30]} Nf6 {[%emt 0:00:00]} 5. Nc3 {[%emt 0:00:00]} Nc6 {[%emt 0:00:00]} 6. Bg5 {[%emt 0:00:00]} e6 {[%emt 0:00:00]} 7. Qd3 {[%emt 0:00:00]} Be7 {[%emt 0:00:00]} 8. O-O-O {[%emt 0:00:00]} Nxd4 {[%emt 0:00:00]} 9. Qxd4 {[%emt 0:00:00]} O-O {[%emt 0:00:00]} 10. h4 {[%emt 0:00:00]} Qa5 {[%emt 0:00:00]} 11. Qd2 {[%emt 0:00:00]} a6 {[%emt 0:00:00]} 12. Kb1 {[%emt 0:00:00]} Qc7 {[%emt 0:00:00]} 13. h5 {[%emt 0:00:00]} b5 {[%emt 0:00:00]} 14. Qf4 {[%emt 0:00:00]} e5 {[%emt 0:00:00]} 15. Qg3 {[%emt 0:00:00]} Bb7 {[%emt 0:00:00]} 16. Bh6 {[%emt 0:00:00]} g6 {[%emt 0:06:30]} 17. Bxf8 {[%emt 0:00:00]} Rxf8 {[%emt 0:00:00]} 18. hxg6 {[%emt 0:00:00]} fxg6 {[%emt 0:00:00]} 19. Bd3 {[%emt 0:00:00]} b4 {[%emt 0:00:00]} 20. Nd5 {[%emt 0:00:00]} Bxd5 {[%emt 0:00:00]} 21. exd5 {[%emt 0:00:00]} e4 {[%emt 0:00:00]} 22. Bxa6 {[%emt 0:00:00]} Ra8 {[%emt 0:00:00]} 23. Bb5 {[%emt 0:00:00]} Qa5 {[%emt 0:00:00]} 24. Bc4 {[%emt 0:00:00]} Rf8 {[%emt 0:00:00]} 25. Rh6 {[%emt 0:00:00]} Rf7 {[%emt 0:00:00]} 26. Rdh1 {[%emt 0:00:00]} Qc5 {[%emt 0:00:00]} 27. Bb3 {[%emt 0:00:00]} Qd4 {[%emt 0:00:00]} 28. Qh3 {[%emt 0:00:00]} Qxf2 {[%emt 0:00:00]} 29. Rxg6+ {[%emt 0:00:00]} Kh8 {[%emt 0:00:00]} 30. Qc8+ {[%emt 0:00:00]} Rf8 {[%emt 0:00:00]} 31. Qa6 {[%emt 0:00:00]} Nd7 {[%emt 0:00:00]} 32. Rgh6 {[%emt 0:00:00]} Rf7 {[%emt 0:00:00]} 33. R6h2 {[%emt 0:02:31]} Bf6 {[%emt 0:00:00]} 34. Qc8+ {[%emt 0:01:04]} Nf8 {[%emt 0:00:00]} 35. Rxh7+ {[%emt 0:00:11]} Kg8 {[%emt 0:00:00]} 36. Qg4+ {[%emt 0:00:45]} Rg7 {[%emt 0:00:00]} 37. Rxg7+ {[%emt 0:02:00]} Bxg7 {[%emt 0:00:00]} 38. Qxe4 {[%emt 0:05:59]} Qf6 {[%emt 0:00:00]} 39. Kc1 {[%emt 0:00:34]} Qxb2+ {[%emt 0:00:00]} 40. Kd2 {[%emt 0:00:10]} Qc3+ {[%emt 0:00:00]} 41. Ke2 {[%emt 0:00:08]} Qg3 {[%emt 0:00:00]} 42. Rf1 {[%emt 0:00:32]} Bh6 {[%emt 0:00:00]} 43. Rf2 {[%emt 0:01:02]} Qg5 {[%emt 0:00:00]} 44. Qd4 {[%emt 0:03:51]} Qh5+ {[%emt 0:06:26]} 45. Ke1 {[%emt 0:00:09]} Qe8+ {[%emt 0:02:47]} 46. Kf1 {[%emt 0:00:15]} Qh5 {[%emt 0:00:39]} 47. Qxb4 {[%emt 0:01:13]} Qh1+ {[%emt 0:01:10]} 48. Ke2 {[%emt 0:00:05]} Qh5+ {[%emt 0:00:09]} 49. Rf3 {[%emt 0:00:57]} Qe5+ {[%emt 0:00:33]} 50. Kf2 {[%emt 0:00:18]} Bg5 {[%emt 0:03:03]} 51. Qg4 {[%emt 0:00:31]} Qg7 {[%emt 0:02:09]} 52. Rg3 {[%emt 0:00:40]} Nh7 {[%emt 0:00:21]} 53. Qe6+ {[%emt 0:00:09]} Kh8 {[%emt 0:00:24]} 54. Qe8+ {[%emt 0:00:09]} Nf8 {[%emt 0:00:15]} 55. Qh5+ {[%emt 0:00:11]} Nh7 {[%emt 0:00:09]} 56. Rxg5 {[%emt 0:00:30]} Qd4+ {[%emt 0:01:08]} 57. Kf3 {[%emt 0:01:52]} Qd1+ {[%emt 0:00:11]} 58. Kg3 {[%emt 0:00:13]} Qe1+ {[%emt 0:01:03]} 59. Kh2 {[%emt 0:01:31]} 1-0

[Event "VIII Open Semana Santa-B 2024"]
[Site "San Vicente del Raspeig"]
[Date "2024.03.29"]
[Round "5.5"]
[White "Safir, Iaroslav"]
[Black "Mestres Pamies, Xavier"]
[Result "1-0"]
[ECO "D02"]
[WhiteElo "1705"]
[BlackElo "1838"]
[Annotator "NA RC"]
[PlyCount "61"]
[EventDate "2024.03.27"]
[EventType "swiss"]
[EventCountry "ESP"]
[SourceTitle "playchess.com"]
[Source "ChessBase"]
[SourceQuality "1"]
[TimeControl "5400+30"]

1. Nf3 {[%emt 0:00:03]} Nf6 {[%emt 0:00:06]} 2. g3 {[%emt 0:00:15]} c5 {[%emt 0:00:25]} 3. Bg2 {[%emt 0:00:08]} d5 {[%emt 0:00:32]} 4. O-O {[%emt 0:00:08]} Nc6 {[%emt 0:00:31]} 5. d4 {[%emt 0:00:07]} cxd4 {[%emt 0:08:09]} 6. Nxd4 {[%emt 0:00:02]} e5 {[%emt 0:00:20]} 7. Nxc6 bxc6 {[%emt 0:00:11]} 8. c4 {[%emt 0:00:09]} h6 {[%emt 0:04:47]} 9. Nc3 {[%emt 0:02:28]} Be6 {[%emt 0:01:55]} 10. Qa4 {[%emt 0:00:11]} Qd7 {[%emt 0:10:43]} 11. cxd5 {[%emt 0:02:01]} cxd5 {[%emt 0:04:20]} 12. Qxd7+ {[%emt 0:00:06]} Kxd7 {[%emt 0:00:31]} 13. Rd1 {[%emt 0:00:11]} Kc6 {[%emt 0:02:51]} 14. Be3 {[%emt 0:00:51]} Bc5 {[%emt 0:01:29]} 15. Bxc5 {[%emt 0:00:21]} Kxc5 {[%emt 0:00:10]} 16. Rac1 {[%emt 0:00:19]} Kd6 {[%emt 0:05:15]} 17. Nxd5 {[%emt 0:00:27]} Nxd5 {[%emt 0:02:50]} 18. Bxd5 {[%emt 0:00:17]} Bxd5 {[%emt 0:00:18]} 19. e4 {[%emt 0:00:07]} Rhc8 {[%emt 0:01:08]} 20. Rxd5+ {[%emt 0:00:11]} Ke6 {[%emt 0:00:14]} 21. Rxc8 {[%emt 0:00:54]} Rxc8 {[%emt 0:00:09]} 22. Ra5 {[%emt 0:00:29]} Rc7 {[%emt 0:01:54]} 23. Kg2 {[%emt 0:01:28]} f6 {[%emt 0:08:56]} 24. Kf3 {[%emt 0:00:30]} Kf7 {[%emt 0:01:10]} 25. b4 {[%emt 0:01:02]} Kg6 {[%emt 0:01:12]} 26. b5 {[%emt 0:00:42]} Rc3+ {[%emt 0:04:04]} 27. Ke2 {[%emt 0:00:35]} Rc7 {[%emt 0:00:50]} 28. a4 {[%emt 0:00:15]} Kg5 {[%emt 0:39:30]} 29. h3 {[%emt 0:00:17]} g6 {[%emt 0:00:00]} 30. Ra6 {[%emt 0:00:16]} f5 {[%emt 0:00:00]} 31. f3 {[%emt 0:00:47]} 1-0